[Event "Titled Tuesday Blitz September 20 Late 2022"]
[White "Shimanov, Aleksandr"]
[Black "Livaic, Leon"]
[WhiteFideId "4198603"]
[BlackFideId "14531534"]
[WhiteElo "2605"]
[BlackElo "2540"]
[Result "1/2-1/2"]
[Round "06"]
[TimeControl "180+1"]
[Date "2022.09.20"]
[WhiteClock "0:00:12"]
[BlackClock "0:00:19"]

1. e4 {[%clk 0:03:00]}  e6 {[%clk 0:03:00]} 2. d4 {[%clk 0:03:00]}  d5 {[%clk 0:03:00]} 3. Nc3 {[%clk 0:03:01]}  Bb4 {[%clk 0:03:01]} 4. Ne2 {[%clk 0:03:02]}  dxe4 {[%clk 0:03:00]} 5. a3 {[%clk 0:03:01]}  Bxc3+ {[%clk 0:03:01]} 6. Nxc3 {[%clk 0:03:02]}  Nc6 {[%clk 0:03:02]} 7. Bf4 {[%clk 0:03:02]}  Nf6 {[%clk 0:02:52]} 8. Bb5 {[%clk 0:03:01]}  Bd7 {[%clk 0:02:51]} 9. Bg5 {[%clk 0:02:51]}  a6 {[%clk 0:02:38]} 10. Ba4 {[%clk 0:02:45]}  h6 {[%clk 0:02:19]} 11. Bh4 {[%clk 0:02:39]}  g5 {[%clk 0:02:12]} 12. Bg3 {[%clk 0:02:39]}  Ne7 {[%clk 0:02:12]} 13. Be5 {[%clk 0:02:33]}  Ng6 {[%clk 0:01:55]} 14. Bxd7+ {[%clk 0:02:30]}  Kxd7 {[%clk 0:01:56]} 15. O-O {[%clk 0:02:14]}  Ke8 {[%clk 0:01:30]} 16. Qe1 {[%clk 0:01:48]}  Rg8 {[%clk 0:01:30]} 17. Rd1 {[%clk 0:01:43]}  c6 {[%clk 0:01:28]} 18. Bxf6 {[%clk 0:01:33]}  Qxf6 {[%clk 0:01:28]} 19. Nxe4 {[%clk 0:01:34]}  Qe7 {[%clk 0:01:28]} 20. c4 {[%clk 0:01:34]}  f5 {[%clk 0:01:23]} 21. Nc5 {[%clk 0:01:33]}  Kf7 {[%clk 0:01:24]} 22. Qc3 {[%clk 0:01:32]}  b6 {[%clk 0:01:19]} 23. Nd3 {[%clk 0:01:22]}  Rad8 {[%clk 0:01:20]} 24. Rfe1 {[%clk 0:01:23]}  Qf6 {[%clk 0:01:20]} 25. Nb4 {[%clk 0:01:19]}  c5 {[%clk 0:01:15]} 26. Nc6 {[%clk 0:01:18]}  Rd6 {[%clk 0:00:58]} 27. Ne5+ {[%clk 0:01:09]}  Kg7 {[%clk 0:00:58]} 28. Nxg6 {[%clk 0:00:37]}  Kxg6 {[%clk 0:00:59]} 29. dxc5 {[%clk 0:00:33]}  Rxd1 {[%clk 0:01:00]} 30. Rxd1 {[%clk 0:00:32]}  Qxc3 {[%clk 0:01:00]} 31. bxc3 {[%clk 0:00:33]}  bxc5 {[%clk 0:01:01]} 32. Rd6 {[%clk 0:00:33]}  Kf6 {[%clk 0:01:01]} 33. Rxa6 {[%clk 0:00:27]}  Rb8 {[%clk 0:01:01]} 34. g3 {[%clk 0:00:27]}  Rb3 {[%clk 0:01:02]} 35. a4 {[%clk 0:00:25]}  Rxc3 {[%clk 0:01:02]} 36. Rc6 {[%clk 0:00:25]}  Rxc4 {[%clk 0:01:02]} 37. a5 {[%clk 0:00:25]}  g4 {[%clk 0:01:01]} 38. a6 {[%clk 0:00:25]}  Ra4 {[%clk 0:01:01]} 39. Rxc5 {[%clk 0:00:25]}  Rxa6 {[%clk 0:01:02]} 40. Kg2 {[%clk 0:00:25]}  h5 {[%clk 0:01:02]} 41. h3 {[%clk 0:00:25]}  Ra2 {[%clk 0:00:56]} 42. hxg4 {[%clk 0:00:25]}  hxg4 {[%clk 0:00:57]} 43. Rb5 {[%clk 0:00:25]}  Rd2 {[%clk 0:00:57]} 44. Rc5 {[%clk 0:00:25]}  Rd5 {[%clk 0:00:57]} 45. Rc6 {[%clk 0:00:26]}  Ke5 {[%clk 0:00:58]} 46. Rb6 {[%clk 0:00:26]}  Rd6 {[%clk 0:00:58]} 47. Rb5+ {[%clk 0:00:27]}  Ke4 {[%clk 0:00:58]} 48. Rb4+ {[%clk 0:00:27]}  Rd4 {[%clk 0:00:58]} 49. Rb6 {[%clk 0:00:27]}  e5 {[%clk 0:00:59]} 50. Re6 {[%clk 0:00:27]}  Rd2 {[%clk 0:00:58]} 51. Re8 {[%clk 0:00:27]}  Rd5 {[%clk 0:00:55]} 52. Re7 {[%clk 0:00:27]}  Kd4 {[%clk 0:00:53]} 53. Re8 {[%clk 0:00:24]}  Rd6 {[%clk 0:00:50]} 54. Re7 {[%clk 0:00:24]}  Kd5 {[%clk 0:00:50]} 55. Re8 {[%clk 0:00:24]}  Re6 {[%clk 0:00:42]} 56. Rf8 {[%clk 0:00:24]}  Ke4 {[%clk 0:00:42]} 57. Ra8 {[%clk 0:00:25]}  f4 {[%clk 0:00:39]} 58. gxf4 {[%clk 0:00:24]}  exf4 {[%clk 0:00:40]} 59. f3+ {[%clk 0:00:21]}  gxf3+ {[%clk 0:00:28]} 60. Kf2 {[%clk 0:00:22]}  Kf5 {[%clk 0:00:25]} 61. Rf8+ {[%clk 0:00:18]}  Ke4 {[%clk 0:00:24]} 62. Ra8 {[%clk 0:00:18]}  Re5 {[%clk 0:00:24]} 63. Ra7 {[%clk 0:00:15]}  Rb5 {[%clk 0:00:22]} 64. Ra4+ {[%clk 0:00:14]}  Kf5 {[%clk 0:00:22]} 65. Ra8 {[%clk 0:00:11]}  Rb2+ {[%clk 0:00:21]} 66. Kxf3 {[%clk 0:00:11]}  Rb3+ {[%clk 0:00:22]} 67. Kf2 {[%clk 0:00:12]}  Ke4 {[%clk 0:00:20]} 68. Re8+ {[%clk 0:00:11]}  Kd3 {[%clk 0:00:20]} 69. Kf3 {[%clk 0:00:11]}  Rb1 {[%clk 0:00:18]} 70. Kxf4 {[%clk 0:00:11]}  Rf1+ {[%clk 0:00:19]} 71. Kg5 {[%clk 0:00:12]} 1/2-1/2


[Site "https://www.chess.com"]

[Event "Titled Tuesday Blitz September 20 Late 2022"]
[White "Tanenbaum, Zachary"]
[Black "Terry, Renato"]
[WhiteFideId "2060850"]
[BlackFideId "3803457"]
[WhiteElo "2175"]
[BlackElo "2577"]
[Result "0-1"]
[Round "06"]
[TimeControl "180+1"]
[Date "2022.09.20"]
[WhiteClock "0:00:10"]
[BlackClock "0:01:04"]

1. e4 {[%clk 0:03:00]}  e6 {[%clk 0:03:00]} 2. d4 {[%clk 0:03:01]}  d5 {[%clk 0:03:00]} 3. Nc3 {[%clk 0:03:01]}  Nf6 {[%clk 0:03:00]} 4. Bg5 {[%clk 0:03:01]}  Bb4 {[%clk 0:03:00]} 5. e5 {[%clk 0:03:02]}  h6 {[%clk 0:03:01]} 6. Bd2 {[%clk 0:03:02]}  Bxc3 {[%clk 0:03:01]} 7. bxc3 {[%clk 0:03:03]}  Ne4 {[%clk 0:03:02]} 8. Qg4 {[%clk 0:03:04]}  g6 {[%clk 0:03:02]} 9. Bd3 {[%clk 0:03:04]}  Nxd2 {[%clk 0:03:03]} 10. Kxd2 {[%clk 0:03:05]}  c5 {[%clk 0:03:03]} 11. Nf3 {[%clk 0:03:05]}  Nc6 {[%clk 0:03:03]} 12. Qf4 {[%clk 0:03:05]}  cxd4 {[%clk 0:03:01]} 13. Nxd4 {[%clk 0:03:03]}  Qg5 {[%clk 0:02:59]} 14. Qxg5 {[%clk 0:03:00]}  hxg5 {[%clk 0:03:00]} 15. Nxc6 {[%clk 0:02:27]}  bxc6 {[%clk 0:03:00]} 16. h3 {[%clk 0:02:21]}  Rh4 {[%clk 0:02:33]} 17. g4 {[%clk 0:01:39]}  Rb8 {[%clk 0:02:29]} 18. Rab1 {[%clk 0:01:31]}  Rb6 {[%clk 0:01:56]} 19. a4 {[%clk 0:00:57]}  Kd7 {[%clk 0:01:55]} 20. a5 {[%clk 0:00:49]}  Rxb1 {[%clk 0:01:54]} 21. Rxb1 {[%clk 0:00:49]}  Rxh3 {[%clk 0:01:54]} 22. Rb8 {[%clk 0:00:47]}  Kc7 {[%clk 0:01:54]} 23. Rb1 {[%clk 0:00:34]}  c5 {[%clk 0:01:47]} 24. Bb5 {[%clk 0:00:32]}  Rf3 {[%clk 0:01:37]} 25. Ke2 {[%clk 0:00:32]}  Rxc3 {[%clk 0:01:34]} 26. Be8 {[%clk 0:00:30]}  Rxc2+ {[%clk 0:01:34]} 27. Ke1 {[%clk 0:00:22]}  Rc4 {[%clk 0:01:32]} 28. Bxf7 {[%clk 0:00:19]}  Rxg4 {[%clk 0:01:31]} 29. Kd2 {[%clk 0:00:16]}  Rd4+ {[%clk 0:01:26]} 30. Kc3 {[%clk 0:00:14]}  Rf4 {[%clk 0:01:26]} 31. Bxg6 {[%clk 0:00:14]}  Rf3+ {[%clk 0:01:26]} 32. Kd2 {[%clk 0:00:14]}  Rxf2+ {[%clk 0:01:27]} 33. Ke3 {[%clk 0:00:14]}  Ra2 {[%clk 0:01:25]} 34. Rg1 {[%clk 0:00:12]}  Ra3+ {[%clk 0:01:25]} 35. Kd2 {[%clk 0:00:13]}  c4 {[%clk 0:01:20]} 36. Rxg5 {[%clk 0:00:12]}  Kc6 {[%clk 0:01:10]} 37. Bc2 {[%clk 0:00:11]}  d4 {[%clk 0:01:07]} 38. Rg4 {[%clk 0:00:11]}  Kd5 {[%clk 0:01:05]} 39. Rg8 {[%clk 0:00:11]}  Ba6 {[%clk 0:01:05]} 40. Rd8+ {[%clk 0:00:10]}  Kxe5 {[%clk 0:01:05]} 41. Rd7 {[%clk 0:00:10]}  c3+ {[%clk 0:01:04]} 0-1


[Site "https://www.chess.com"]

[Event "Titled Tuesday Blitz September 20 Late 2022"]
[White "Vykouk, Jan"]
[Black "Mortazavi, Ali"]
[WhiteFideId "349658"]
[BlackFideId "401323"]
[WhiteElo "2352"]
[BlackElo "2339"]
[Result "1-0"]
[Round "06"]
[TimeControl "180+1"]
[Date "2022.09.20"]
[WhiteClock "0:00:44"]
[BlackClock "0:00:03"]

1. e4 {[%clk 0:03:00]}  c6 {[%clk 0:02:59]} 2. Nc3 {[%clk 0:02:59]}  d5 {[%clk 0:02:57]} 3. Nf3 {[%clk 0:02:59]}  dxe4 {[%clk 0:02:57]} 4. Nxe4 {[%clk 0:03:00]}  Nf6 {[%clk 0:02:57]} 5. Qe2 {[%clk 0:03:00]}  Be6 {[%clk 0:02:57]} 6. Ng3 {[%clk 0:02:55]}  g6 {[%clk 0:02:53]} 7. c4 {[%clk 0:02:50]}  c5 {[%clk 0:02:43]} 8. Ng5 {[%clk 0:02:38]}  Bg4 {[%clk 0:02:39]} 9. f3 {[%clk 0:02:36]}  Bc8 {[%clk 0:02:38]} 10. N3e4 {[%clk 0:02:22]}  Nxe4 {[%clk 0:02:38]} 11. Nxe4 {[%clk 0:02:21]}  Bg7 {[%clk 0:02:38]} 12. Nxc5 {[%clk 0:02:19]}  O-O {[%clk 0:02:29]} 13. Ne4 {[%clk 0:02:18]}  Nc6 {[%clk 0:02:27]} 14. d3 {[%clk 0:02:12]}  Nd4 {[%clk 0:01:59]} 15. Qd1 {[%clk 0:02:12]}  f5 {[%clk 0:01:54]} 16. Nc3 {[%clk 0:02:11]}  e5 {[%clk 0:01:53]} 17. Be2 {[%clk 0:02:10]}  Qh4+ {[%clk 0:01:52]} 18. g3 {[%clk 0:02:10]}  Qh3 {[%clk 0:01:52]} 19. Bf1 {[%clk 0:02:10]}  Qh5 {[%clk 0:01:51]} 20. Bg2 {[%clk 0:02:10]}  Be6 {[%clk 0:01:16]} 21. O-O {[%clk 0:02:10]}  Rad8 {[%clk 0:01:14]} 22. Be3 {[%clk 0:02:09]}  f4 {[%clk 0:01:03]} 23. Bxd4 {[%clk 0:02:05]}  fxg3 {[%clk 0:00:56]} 24. hxg3 {[%clk 0:02:03]}  exd4 {[%clk 0:00:53]} 25. Ne4 {[%clk 0:01:58]}  g5 {[%clk 0:00:41]} 26. f4 {[%clk 0:01:56]}  Qxd1 {[%clk 0:00:31]} 27. Raxd1 {[%clk 0:01:57]}  gxf4 {[%clk 0:00:31]} 28. gxf4 {[%clk 0:01:54]}  Bg4 {[%clk 0:00:30]} 29. Rd2 {[%clk 0:01:54]}  Bh6 {[%clk 0:00:26]} 30. Rdf2 {[%clk 0:01:53]}  Kh8 {[%clk 0:00:24]} 31. Ng5 {[%clk 0:01:50]}  Rd7 {[%clk 0:00:18]} 32. Be4 {[%clk 0:01:42]}  Rg7 {[%clk 0:00:14]} 33. Rg2 {[%clk 0:01:40]}  Bc8 {[%clk 0:00:12]} 34. Rff2 {[%clk 0:01:28]}  b6 {[%clk 0:00:12]} 35. Rg3 {[%clk 0:01:23]}  a5 {[%clk 0:00:08]} 36. Rh2 {[%clk 0:01:22]}  Bxg5 {[%clk 0:00:06]} 37. fxg5 {[%clk 0:00:46]}  Bf5 {[%clk 0:00:04]} 38. Rf2 {[%clk 0:00:45]}  Rgf7 {[%clk 0:00:04]} 39. Rgf3 {[%clk 0:00:44]}  Bg6 {[%clk 0:00:03]} 40. Rxf7 {[%clk 0:00:43]}  Rxf7 {[%clk 0:00:03]} 41. Rxf7 {[%clk 0:00:43]}  Bxf7 {[%clk 0:00:03]} 42. Kf2 {[%clk 0:00:43]}  Kg7 {[%clk 0:00:03]} 43. Kf3 {[%clk 0:00:43]}  h6 {[%clk 0:00:02]} 44. gxh6+ {[%clk 0:00:43]}  Kxh6 {[%clk 0:00:03]} 45. Kf4 {[%clk 0:00:44]} 1-0


[Site "https://www.chess.com"]

[Event "Titled Tuesday Blitz September 20 Late 2022"]
[White "Aggelis, Nikolaos"]
[Black "Korchmar, Vasiliy"]
[WhiteFideId "4213220"]
[BlackFideId "24131750"]
[WhiteElo "2154"]
[BlackElo "2370"]
[Result "0-1"]
[Round "07"]
[TimeControl "180+1"]
[Date "2022.09.20"]
[WhiteClock "0:00:35"]
[BlackClock "0:01:38"]

1. e4 {[%clk 0:03:00]}  c5 {[%clk 0:03:00]} 2. Nc3 {[%clk 0:02:59]}  d6 {[%clk 0:03:00]} 3. g3 {[%clk 0:02:59]}  Nc6 {[%clk 0:02:59]} 4. Bg2 {[%clk 0:03:00]}  g6 {[%clk 0:03:00]} 5. d3 {[%clk 0:03:00]}  Bg7 {[%clk 0:03:01]} 6. Be3 {[%clk 0:03:00]}  Rb8 {[%clk 0:03:01]} 7. Qd2 {[%clk 0:03:00]}  h5 {[%clk 0:03:00]} 8. h3 {[%clk 0:02:58]}  b5 {[%clk 0:03:00]} 9. Nge2 {[%clk 0:02:58]}  b4 {[%clk 0:03:01]} 10. Nd1 {[%clk 0:02:57]}  e6 {[%clk 0:03:01]} 11. O-O {[%clk 0:02:56]}  Nge7 {[%clk 0:03:02]} 12. c3 {[%clk 0:02:52]}  a5 {[%clk 0:02:56]} 13. a3 {[%clk 0:02:41]}  bxc3 {[%clk 0:02:50]} 14. bxc3 {[%clk 0:02:41]}  a4 {[%clk 0:02:46]} 15. d4 {[%clk 0:02:41]}  Na5 {[%clk 0:02:42]} 16. Ra2 {[%clk 0:02:34]}  Nc4 {[%clk 0:02:24]} 17. Qc1 {[%clk 0:02:31]}  Nxe3 {[%clk 0:02:15]} 18. Nxe3 {[%clk 0:02:31]}  Ba6 {[%clk 0:02:15]} 19. Re1 {[%clk 0:02:30]}  O-O {[%clk 0:02:15]} 20. d5 {[%clk 0:02:19]}  exd5 {[%clk 0:02:13]} 21. Nxd5 {[%clk 0:02:18]}  Nxd5 {[%clk 0:02:12]} 22. exd5 {[%clk 0:02:17]}  Rb3 {[%clk 0:02:08]} 23. Rc2 {[%clk 0:01:50]}  Re8 {[%clk 0:02:04]} 24. c4 {[%clk 0:01:46]}  Bc8 {[%clk 0:01:57]} 25. Nf4 {[%clk 0:01:29]}  Rxe1+ {[%clk 0:01:55]} 26. Qxe1 {[%clk 0:01:27]}  Rxa3 {[%clk 0:01:56]} 27. Qe2 {[%clk 0:01:12]}  Ra1+ {[%clk 0:01:54]} 28. Kh2 {[%clk 0:01:11]}  Bf5 {[%clk 0:01:53]} 29. Ra2 {[%clk 0:01:09]}  Rxa2 {[%clk 0:01:51]} 30. Qxa2 {[%clk 0:01:08]}  Qa5 {[%clk 0:01:52]} 31. Ne2 {[%clk 0:00:58]}  a3 {[%clk 0:01:49]} 32. Nc1 {[%clk 0:00:52]}  Qb4 {[%clk 0:01:44]} 33. Nb3 {[%clk 0:00:44]}  Bb2 {[%clk 0:01:43]} 34. Bf1 {[%clk 0:00:40]}  Bc2 {[%clk 0:01:42]} 35. Nc1 {[%clk 0:00:35]}  Qe1 {[%clk 0:01:38]} 0-1


[Site "https://www.chess.com"]

[Event "Titled Tuesday Blitz September 20 Late 2022"]
[White "Bok, Benjamin"]
[Black "Timmermans, Mark"]
[WhiteFideId "1017063"]
[BlackFideId "1026399"]
[WhiteElo "2658"]
[BlackElo "2460"]
[Result "1-0"]
[Round "07"]
[TimeControl "180+1"]
[Date "2022.09.20"]
[WhiteClock "0:00:06"]
[BlackClock "0:00:04"]

1. d4 {[%clk 0:03:00]}  Nf6 {[%clk 0:02:58]} 2. c4 {[%clk 0:03:01]}  e6 {[%clk 0:02:58]} 3. Nc3 {[%clk 0:03:01]}  Bb4 {[%clk 0:02:58]} 4. Qc2 {[%clk 0:03:01]}  O-O {[%clk 0:02:57]} 5. a3 {[%clk 0:03:00]}  Bxc3+ {[%clk 0:02:57]} 6. Qxc3 {[%clk 0:03:00]}  b5 {[%clk 0:02:58]} 7. cxb5 {[%clk 0:02:47]}  c6 {[%clk 0:02:57]} 8. Bg5 {[%clk 0:02:36]}  cxb5 {[%clk 0:02:55]} 9. e3 {[%clk 0:02:36]}  Bb7 {[%clk 0:02:49]} 10. f3 {[%clk 0:02:34]}  a6 {[%clk 0:02:20]} 11. Bd3 {[%clk 0:02:25]}  Nc6 {[%clk 0:02:04]} 12. Ne2 {[%clk 0:02:25]}  h6 {[%clk 0:01:41]} 13. Bh4 {[%clk 0:02:24]}  Nd5 {[%clk 0:01:41]} 14. Bxd8 {[%clk 0:02:20]}  Nxc3 {[%clk 0:01:40]} 15. Bh4 {[%clk 0:02:15]}  Nxe2 {[%clk 0:01:34]} 16. Kxe2 {[%clk 0:02:16]}  Rfc8 {[%clk 0:01:33]} 17. Be1 {[%clk 0:01:38]}  Ne7 {[%clk 0:01:25]} 18. e4 {[%clk 0:01:31]}  f5 {[%clk 0:01:22]} 19. Bd2 {[%clk 0:01:19]}  fxe4 {[%clk 0:01:15]} 20. fxe4 {[%clk 0:01:20]}  d5 {[%clk 0:01:15]} 21. e5 {[%clk 0:01:19]}  Nf5 {[%clk 0:01:11]} 22. Bc3 {[%clk 0:00:56]}  h5 {[%clk 0:01:06]} 23. Rhg1 {[%clk 0:00:47]}  a5 {[%clk 0:01:00]} 24. Bxb5 {[%clk 0:00:43]}  Ba6 {[%clk 0:01:00]} 25. Bxa6 {[%clk 0:00:42]}  Rxa6 {[%clk 0:01:01]} 26. Kd3 {[%clk 0:00:42]}  a4 {[%clk 0:00:59]} 27. g4 {[%clk 0:00:36]}  hxg4 {[%clk 0:00:59]} 28. Rxg4 {[%clk 0:00:37]}  Rb6 {[%clk 0:00:58]} 29. Rag1 {[%clk 0:00:33]}  Rb3 {[%clk 0:00:54]} 30. h4 {[%clk 0:00:28]}  Kf7 {[%clk 0:00:54]} 31. h5 {[%clk 0:00:28]}  Rh8 {[%clk 0:00:53]} 32. Rg5 {[%clk 0:00:28]}  Rc8 {[%clk 0:00:50]} 33. Rf1 {[%clk 0:00:26]}  Rc4 {[%clk 0:00:39]} 34. Rfxf5+ {[%clk 0:00:22]}  exf5 {[%clk 0:00:40]} 35. Rxf5+ {[%clk 0:00:23]}  Ke6 {[%clk 0:00:39]} 36. Rg5 {[%clk 0:00:24]}  Rc7 {[%clk 0:00:39]} 37. Rg6+ {[%clk 0:00:20]}  Kf5 {[%clk 0:00:36]} 38. Rd6 {[%clk 0:00:20]}  Rb5 {[%clk 0:00:35]} 39. Ra6 {[%clk 0:00:17]}  Rc8 {[%clk 0:00:34]} 40. Rxa4 {[%clk 0:00:16]}  Rh8 {[%clk 0:00:34]} 41. Ra7 {[%clk 0:00:16]}  Rxh5 {[%clk 0:00:35]} 42. Rxg7 {[%clk 0:00:16]}  Rh3+ {[%clk 0:00:30]} 43. Kc2 {[%clk 0:00:16]}  Rh2+ {[%clk 0:00:30]} 44. Kb1 {[%clk 0:00:16]}  Rh3 {[%clk 0:00:27]} 45. Ka2 {[%clk 0:00:16]}  Re3 {[%clk 0:00:26]} 46. a4 {[%clk 0:00:14]}  Rb8 {[%clk 0:00:25]} 47. a5 {[%clk 0:00:14]}  Rh3 {[%clk 0:00:12]} 48. Rc7 {[%clk 0:00:07]}  Ke6 {[%clk 0:00:11]} 49. b4 {[%clk 0:00:06]}  Rf8 {[%clk 0:00:05]} 50. Kb3 {[%clk 0:00:06]}  Rf1 {[%clk 0:00:05]} 51. a6 {[%clk 0:00:06]}  Ra1 {[%clk 0:00:04]} 52. b5 {[%clk 0:00:06]} 1-0


[Site "https://www.chess.com"]

[Event "Titled Tuesday Blitz September 20 Late 2022"]
[White "Cukrowski, Filip"]
[Black "Rosen, Eric"]
[WhiteFideId "1171097"]
[BlackFideId "2032562"]
[WhiteElo "2093"]
[BlackElo "2362"]
[Result "1-0"]
[Round "07"]
[TimeControl "180+1"]
[Date "2022.09.20"]
[WhiteClock "0:00:16"]
[BlackClock "0:00:03"]

1. d4 {[%clk 0:03:00]}  d5 {[%clk 0:02:51]} 2. c4 {[%clk 0:02:59]}  e6 {[%clk 0:02:49]} 3. Nc3 {[%clk 0:02:59]}  Nf6 {[%clk 0:02:49]} 4. g3 {[%clk 0:02:58]}  c5 {[%clk 0:02:37]} 5. cxd5 {[%clk 0:02:55]}  cxd4 {[%clk 0:02:33]} 6. Qxd4 {[%clk 0:02:46]}  Nc6 {[%clk 0:02:31]} 7. Qd1 {[%clk 0:02:39]}  exd5 {[%clk 0:02:31]} 8. e3 {[%clk 0:02:18]}  d4 {[%clk 0:02:21]} 9. exd4 {[%clk 0:02:18]}  Nxd4 {[%clk 0:02:18]} 10. Be3 {[%clk 0:02:14]}  Bc5 {[%clk 0:02:04]} 11. Nf3 {[%clk 0:01:35]}  Nxf3+ {[%clk 0:01:15]} 12. Qxf3 {[%clk 0:01:36]}  Bxe3 {[%clk 0:01:16]} 13. Qxe3+ {[%clk 0:01:33]}  Be6 {[%clk 0:01:08]} 14. Bb5+ {[%clk 0:01:27]}  Ke7 {[%clk 0:01:05]} 15. Rd1 {[%clk 0:01:18]}  Qb6 {[%clk 0:00:54]} 16. Rd7+ {[%clk 0:01:07]}  Nxd7 {[%clk 0:00:47]} 17. Nd5+ {[%clk 0:01:07]}  Kf8 {[%clk 0:00:30]} 18. Nxb6 {[%clk 0:01:06]}  Nxb6 {[%clk 0:00:30]} 19. O-O {[%clk 0:01:02]}  h5 {[%clk 0:00:25]} 20. Rc1 {[%clk 0:00:54]}  h4 {[%clk 0:00:21]} 21. Rc7 {[%clk 0:00:50]}  Kg8 {[%clk 0:00:15]} 22. Rxb7 {[%clk 0:00:48]}  Rd8 {[%clk 0:00:10]} 23. Be2 {[%clk 0:00:45]}  Nd5 {[%clk 0:00:06]} 24. Qg5 {[%clk 0:00:39]}  Nf6 {[%clk 0:00:05]} 25. Rxa7 {[%clk 0:00:35]}  h3 {[%clk 0:00:04]} 26. Qa5 {[%clk 0:00:30]}  Rc8 {[%clk 0:00:03]} 27. Ra8 {[%clk 0:00:30]}  Kh7 {[%clk 0:00:04]} 28. Rxc8 {[%clk 0:00:28]}  Rxc8 {[%clk 0:00:05]} 29. f3 {[%clk 0:00:24]}  Rc1+ {[%clk 0:00:05]} 30. Kf2 {[%clk 0:00:24]}  Rc2 {[%clk 0:00:06]} 31. b4 {[%clk 0:00:18]}  g6 {[%clk 0:00:05]} 32. Ke1 {[%clk 0:00:13]}  Rxa2 {[%clk 0:00:04]} 33. Qd8 {[%clk 0:00:12]}  Nd5 {[%clk 0:00:02]} 34. b5 {[%clk 0:00:12]}  Ra1+ {[%clk 0:00:01]} 35. Kd2 {[%clk 0:00:12]}  Ra2+ {[%clk 0:00:02]} 36. Ke1 {[%clk 0:00:12]}  Ra1+ {[%clk 0:00:02]} 37. Kd2 {[%clk 0:00:12]}  Ra2+ {[%clk 0:00:03]} 38. Kd3 {[%clk 0:00:12]}  Rb2 {[%clk 0:00:02]} 39. Qh4+ {[%clk 0:00:12]}  Kg7 {[%clk 0:00:02]} 40. Qd4+ {[%clk 0:00:12]}  Kf8 {[%clk 0:00:02]} 41. Qxb2 {[%clk 0:00:12]}  Bf5+ {[%clk 0:00:02]} 42. Kd4 {[%clk 0:00:12]}  Nc7 {[%clk 0:00:01]} 43. b6 {[%clk 0:00:12]}  Ne6+ {[%clk 0:00:01]} 44. Ke5 {[%clk 0:00:13]}  Ke7 {[%clk 0:00:01]} 45. Qb4+ {[%clk 0:00:14]}  Kd7 {[%clk 0:00:01]} 46. Bb5+ {[%clk 0:00:14]}  Kc8 {[%clk 0:00:01]} 47. Qc4+ {[%clk 0:00:14]}  Kb7 {[%clk 0:00:02]} 48. Qc6+ {[%clk 0:00:14]}  Kb8 {[%clk 0:00:02]} 49. b7 {[%clk 0:00:13]}  Nd8 {[%clk 0:00:01]} 50. Qd6+ {[%clk 0:00:13]}  Kxb7 {[%clk 0:00:01]} 51. Qxd8 {[%clk 0:00:14]}  f6+ {[%clk 0:00:02]} 52. Qxf6 {[%clk 0:00:14]}  Bb1 {[%clk 0:00:02]} 53. Bc4 {[%clk 0:00:14]}  Bc2 {[%clk 0:00:02]} 54. Bd5+ {[%clk 0:00:14]}  Kc7 {[%clk 0:00:02]} 55. Qc6+ {[%clk 0:00:15]}  Kd8 {[%clk 0:00:03]} 56. Qxc2 {[%clk 0:00:15]}  g5 {[%clk 0:00:03]} 57. Qg6 {[%clk 0:00:16]}  g4 {[%clk 0:00:04]} 58. Kd6 {[%clk 0:00:16]}  Kc8 {[%clk 0:00:03]} 59. Qg8# {[%clk 0:00:16]} 1-0


[Site "https://www.chess.com"]

[Event "Titled Tuesday Blitz September 20 Late 2022"]
[White "Donchenko, Alexander"]
[Black "Goroshkov, Maksym"]
[WhiteFideId "24603295"]
[BlackFideId "14142716"]
[WhiteElo "2572"]
[BlackElo "2257"]
[Result "1-0"]
[Round "07"]
[TimeControl "180+1"]
[Date "2022.09.20"]
[WhiteClock "0:00:48"]
[BlackClock "0:00:20"]

1. Nf3 {[%clk 0:03:00]}  Nf6 {[%clk 0:02:59]} 2. g3 {[%clk 0:03:01]}  g6 {[%clk 0:03:00]} 3. Bg2 {[%clk 0:03:02]}  Bg7 {[%clk 0:03:01]} 4. O-O {[%clk 0:03:02]}  O-O {[%clk 0:03:01]} 5. d4 {[%clk 0:03:03]}  d5 {[%clk 0:03:02]} 6. c4 {[%clk 0:03:03]}  dxc4 {[%clk 0:03:02]} 7. Na3 {[%clk 0:03:03]}  c6 {[%clk 0:03:00]} 8. Nxc4 {[%clk 0:03:02]}  Bf5 {[%clk 0:02:59]} 9. b3 {[%clk 0:03:01]}  Nbd7 {[%clk 0:02:59]} 10. Bb2 {[%clk 0:03:01]}  Nb6 {[%clk 0:02:59]} 11. Nce5 {[%clk 0:03:01]}  Qc8 {[%clk 0:02:58]} 12. Re1 {[%clk 0:03:00]}  Bh3 {[%clk 0:02:58]} 13. Bh1 {[%clk 0:03:00]}  Ng4 {[%clk 0:02:56]} 14. Nd3 {[%clk 0:02:55]}  Rd8 {[%clk 0:02:39]} 15. Nf4 {[%clk 0:02:42]}  Nh6 {[%clk 0:02:28]} 16. Nxh3 {[%clk 0:02:39]}  Qxh3 {[%clk 0:02:29]} 17. Qc2 {[%clk 0:02:35]}  Qh5 {[%clk 0:02:13]} 18. Bg2 {[%clk 0:02:33]}  Ng4 {[%clk 0:02:06]} 19. Rad1 {[%clk 0:02:29]}  Nf6 {[%clk 0:02:01]} 20. a4 {[%clk 0:02:27]}  Rac8 {[%clk 0:01:41]} 21. e4 {[%clk 0:02:23]}  h6 {[%clk 0:01:34]} 22. Bc3 {[%clk 0:02:06]}  g5 {[%clk 0:01:31]} 23. a5 {[%clk 0:02:04]}  Na8 {[%clk 0:01:29]} 24. Ne5 {[%clk 0:02:00]}  Ng4 {[%clk 0:01:23]} 25. Nxg4 {[%clk 0:01:50]}  Qxg4 {[%clk 0:01:24]} 26. e5 {[%clk 0:01:45]}  Nc7 {[%clk 0:01:21]} 27. Be4 {[%clk 0:01:44]}  Nd5 {[%clk 0:01:18]} 28. Bf5 {[%clk 0:01:40]}  Qf3 {[%clk 0:01:15]} 29. Bxc8 {[%clk 0:01:37]}  Qxc3 {[%clk 0:01:14]} 30. Qxc3 {[%clk 0:01:24]}  Nxc3 {[%clk 0:01:15]} 31. Rd3 {[%clk 0:01:24]}  Rxc8 {[%clk 0:01:10]} 32. Rxc3 {[%clk 0:01:24]}  Rd8 {[%clk 0:01:11]} 33. Rc4 {[%clk 0:01:23]}  a6 {[%clk 0:01:10]} 34. Rb4 {[%clk 0:01:21]}  Rd7 {[%clk 0:01:07]} 35. f4 {[%clk 0:01:15]}  e6 {[%clk 0:01:05]} 36. Kf2 {[%clk 0:01:10]}  Bf8 {[%clk 0:01:03]} 37. Rc4 {[%clk 0:01:10]}  Be7 {[%clk 0:01:01]} 38. Ke3 {[%clk 0:01:09]}  Bd8 {[%clk 0:00:59]} 39. b4 {[%clk 0:01:08]}  f5 {[%clk 0:00:45]} 40. exf6 {[%clk 0:01:05]}  Bxf6 {[%clk 0:00:45]} 41. Ke4 {[%clk 0:01:01]}  Kf7 {[%clk 0:00:44]} 42. f5 {[%clk 0:00:57]}  exf5+ {[%clk 0:00:41]} 43. Kxf5 {[%clk 0:00:58]}  Bxd4 {[%clk 0:00:27]} 44. Rd1 {[%clk 0:00:58]}  Rd5+ {[%clk 0:00:27]} 45. Kg4 {[%clk 0:00:56]}  Be5 {[%clk 0:00:20]} 46. Rxd5 {[%clk 0:00:53]}  cxd5 {[%clk 0:00:21]} 47. Rc8 {[%clk 0:00:52]}  Bd6 {[%clk 0:00:19]} 48. Kf5 {[%clk 0:00:51]}  Bxb4 {[%clk 0:00:19]} 49. Rc7+ {[%clk 0:00:51]}  Ke8 {[%clk 0:00:19]} 50. Ke6 {[%clk 0:00:50]}  Kd8 {[%clk 0:00:19]} 51. Rxb7 {[%clk 0:00:50]}  Bxa5 {[%clk 0:00:20]} 52. Kxd5 {[%clk 0:00:51]}  Bc7 {[%clk 0:00:20]} 53. Ra7 {[%clk 0:00:51]}  a5 {[%clk 0:00:20]} 54. Kc6 {[%clk 0:00:51]}  Be5 {[%clk 0:00:20]} 55. Rxa5 {[%clk 0:00:48]}  Bc3 {[%clk 0:00:20]} 56. Ra7 {[%clk 0:00:47]}  Ke8 {[%clk 0:00:20]} 57. Rh7 {[%clk 0:00:47]}  Kf8 {[%clk 0:00:19]} 58. Rxh6 {[%clk 0:00:47]}  Kg7 {[%clk 0:00:20]} 59. Re6 {[%clk 0:00:47]}  Bd4 {[%clk 0:00:20]} 60. Kd5 {[%clk 0:00:47]}  Bg1 {[%clk 0:00:20]} 61. h3 {[%clk 0:00:46]}  Bf2 {[%clk 0:00:20]} 62. g4 {[%clk 0:00:46]}  Kf7 {[%clk 0:00:20]} 63. Rc6 {[%clk 0:00:46]}  Be3 {[%clk 0:00:20]} 64. Ke4 {[%clk 0:00:46]}  Bd2 {[%clk 0:00:20]} 65. Kf5 {[%clk 0:00:47]}  Be3 {[%clk 0:00:20]} 66. Rg6 {[%clk 0:00:48]}  Bd2 {[%clk 0:00:20]} 67. Rxg5 {[%clk 0:00:48]} 1-0


[Site "https://www.chess.com"]